bitfinex/quotes_BTCUSD_20230831
["timestamp","ask_amount","ask_price","bid_price","bid_amount"]
[1693500134618,0.5,26586.0,26585.0,0.14]
[1693500134830,0.52964045,26586.0,26585.0,0.02]
[1693500136172,0.61663845,26586.0,26585.0,0.02]
[1693500136594,0.61663845,26586.0,26585.0,0.023]
[1693500137006,0.52964045,26586.0,26585.0,0.023]
[1693500137440,0.52964045,26586.0,26585.0,0.39068085]
[1693500137441,0.02964045,26586.0,26585.0,0.39068085]
[1693500137688,0.037,26586.0,26585.0,0.39368085]
[1693500138124,0.037,26586.0,26585.0,0.50596085]
[1693500138337,0.037,26586.0,26585.0,0.50188085]
[1693500138549,0.086998,26590.0,26585.0,0.47870085]
[1693500138765,0.086998,26590.0,26589.0,0.02]
[1693500139608,0.086998,26590.0,26589.0,0.38768085]
[1693500139825,0.217495,26591.0,26590.0,0.02]
[1693500140041,0.086998,26592.0,26591.0,0.02]
[1693500140255,0.130497,26593.0,26592.0,0.02]
[1693500140256,0.217495,26593.0,26592.0,0.02]
[1693500140468,0.086998,26593.0,26592.0,0.02]
[1693500140688,0.130497,26593.0,26592.0,0.02]
[1693500141112,0.130497,26593.0,26592.0,0.38768085]
[1693500141574,0.173996,26593.0,26592.0,0.38768085]
[1693500141994,0.254495,26593.0,26592.0,0.003]
[1693500142213,0.037,26593.0,26592.0,0.003]
[1693500142421,0.5,26589.0,26588.0,0.02]
[1693500142630,0.77805239,26589.0,26588.0,0.02]
[1693500142884,0.93098005,26589.0,26588.0,0.02]
[1693500143112,0.88732773,26589.0,26588.0,0.02]
[1693500144156,0.88732773,26589.0,26588.0,0.023]
[1693500144607,0.92332773,26589.0,26588.0,0.023]
[1693500146174,0.92332773,26589.0,26588.0,0.003]
[1693500146674,0.92332773,26589.0,26583.0,0.02]
[1693500146675,0.5,26584.0,26583.0,0.02]
[1693500146884,0.8652199,26584.0,26581.0,0.02]
[1693500147097,0.23433007,26583.0,26581.0,0.02]
[1693500147308,0.295,26582.0,26581.0,0.02]
[1693500148459,0.58725773,26584.0,26581.0,0.02]
[1693500148674,0.036,26582.0,26581.0,0.001]
[1693500148885,0.036,26582.0,26581.0,0.021]
[1693500148886,0.12325773,26582.0,26581.0,0.021]
[1693500149475,0.336,26582.0,26581.0,0.021]
[1693500149648,0.42325773,26582.0,26581.0,0.021]
[1693500149854,0.38725773,26582.0,26581.0,0.023]
[1693500150201,0.42325773,26582.0,26581.0,0.024]
[1693500150407,0.336,26582.0,26581.0,0.141]
[1693500150643,0.58725773,26584.0,26583.0,0.02]
[1693500150866,1.01812873,26584.0,26583.0,0.02]
[1693500151067,0.88724019,26584.0,26583.0,0.02]
[1693500151887,0.3,26584.0,26583.0,0.02]
[1693500152093,0.336,26584.0,26583.0,0.021]
[1693500153557,0.42324019,26584.0,26583.0,0.021]
[1693500153746,0.46688854,26584.0,26583.0,0.021]
[1693500154082,0.67733647,26584.0,26583.0,0.024]
[1693500154486,0.50288854,26584.0,26583.0,0.024]
[1693500154708,0.372,26584.0,26583.0,0.024]
[1693500154819,0.45922304,26584.0,26583.0,0.024]
[1693500155219,0.50288854,26584.0,26583.0,0.024]
[1693500155420,0.54644793,26584.0,26583.0,0.024]
[1693500156674,0.54144793,26584.0,26583.0,0.024]
[1693500156887,0.54144793,26584.0,26583.0,0.004]
[1693500157330,0.58510247,26584.0,26583.0,0.004]
[1693500157489,0.58510247,26584.0,26583.0,0.024]
[1693500157699,0.60510247,26584.0,26583.0,0.004]
[1693500159392,0.5,26582.0,26581.0,0.02]
[1693500159575,0.8,26582.0,26581.0,0.02]
[1693500159811,0.51811012,26582.0,26581.0,0.02]
[1693500160376,0.51820445,26582.0,26581.0,0.02]
[1693500160574,0.59120445,26582.0,26581.0,0.024]
[1693500160777,1.09120445,26582.0,26581.0,0.024]
[1693500160976,1.09120445,26582.0,26581.0,0.004]
[1693500161187,1.0912045,26582.0,26581.0,0.024]
[1693500161362,1.09120336,26582.0,26581.0,0.024]
[1693500161711,0.5,26577.0,26572.0,0.04]
[1693500161926,0.23432151,26576.0,26573.0,0.04]
[1693500162151,0.5,26574.0,26573.0,0.04]
[1693500162361,0.94707234,26574.0,26573.0,0.04]
[1693500162578,0.8,26574.0,26573.0,0.04]
[1693500163467,0.25412292,26577.0,26576.0,0.04]
[1693500163468,0.12324917,26577.0,26576.0,0.04]
[1693500163683,0.3,26577.0,26576.0,0.04]
[1693500164762,0.3,26578.0,26576.0,0.04]
[1693500164970,0.034,26577.0,26576.0,0.04]
[1693500165179,0.334,26577.0,26576.0,0.04]
[1693500166071,0.034,26577.0,26576.0,0.04]
[1693500166279,0.034,26577.0,26576.0,0.40768085]
[1693500166491,0.07,26577.0,26576.0,0.51810085]
[1693500166703,0.036,26577.0,26576.0,0.49980085]
[1693500166909,0.036,26577.0,26576.0,0.43068085]
[1693500167143,0.057,26577.0,26576.0,0.49968085]
[1693500167349,0.08724917,26580.0,26576.0,0.49968085]
[1693500167350,0.08724917,26580.0,26576.0,0.49650085]
[1693500167560,0.08724917,26579.0,26578.0,0.02]
[1693500167771,0.08724917,26579.0,26576.0,0.001]
[1693500167772,0.508,26577.0,26576.0,0.002]
[1693500167977,0.58727047,26577.0,26576.0,0.041]
[1693500168178,1.01814422,26577.0,26576.0,0.04]
[1693500168417,1.02014422,26577.0,26576.0,0.041]
[1693500168622,0.51914422,26577.0,26576.0,0.045]
[1693500168861,0.99549834,26577.0,26576.0,0.005]
[1693500169083,0.99549834,26577.0,26574.0,0.04]
[1693500169084,1.40680378,26577.0,26574.0,0.04]
[1693500169300,0.5,26573.0,26572.0,0.04]
[1693500169508,0.94707234,26573.0,26572.0,0.04]
[1693500169739,0.8,26573.0,26571.0,0.04]
[1693500169953,0.3,26572.0,26571.0,0.04]
[1693500170378,0.5,26570.0,26569.0,0.04]
[1693500170590,0.5,26570.0,26567.0,0.020503]
[1693500170591,0.94707234,26570.0,26567.0,0.060503]
[1693500170798,0.94707234,26570.0,26567.0,0.020503]
[1693500171015,0.3,26569.0,26568.0,0.04]
[1693500171442,0.3,26569.0,26568.0,0.03975145]
[1693500171653,0.3,26569.0,26568.0,0.03950659]
[1693500172429,0.521,26570.0,26569.0,0.03950659]
[1693500172645,0.821,26570.0,26569.0,0.03950659]
[1693500172856,0.821,26570.0,26568.0,0.03950659]
[1693500173071,0.3,26569.0,26568.0,0.03950659]
[1693500173699,0.307,26569.0,26568.0,0.03950659]
[1693500173908,0.318,26569.0,26568.0,0.04150659]
[1693500181061,0.31902259,26569.0,26568.0,0.04150659]
[1693500181240,0.01902259,26569.0,26568.0,0.04150659]
[1693500182075,0.07952559,26569.0,26568.0,0.04150659]
[1693500182913,0.07952559,26569.0,26568.0,0.002]
[1693500182914,0.74720644,26569.0,26568.0,0.002]
[1693500183146,0.5,26566.0,26565.0,0.06000959]
[1693500183363,1.03475319,26566.0,26565.0,0.020503]
[1693500183603,1.20768085,26566.0,26565.0,0.020503]
[1693500184046,1.20768085,26566.0,26563.0,0.02]
[1693500184047,1.4,26564.0,26563.0,0.02]
[1693500184265,2.06768085,26564.0,26563.0,0.02]
[1693500184691,2.06768085,26564.0,26562.0,0.020503]
[1693500184925,1.7,26564.0,26563.0,0.02]
[1693500185176,0.04536449,26563.0,26562.0,0.04000959]
[1693500185402,0.34536449,26563.0,26562.0,0.04000959]
[1693500185825,0.34536449,26563.0,26562.0,0.020503]
[1693500186048,0.3,26563.0,26562.0,0.04000959]
[1693500186771,0.3,26563.0,26562.0,0.020503]
[1693500186773,0.42049341,26563.0,26562.0,0.020503]
[1693500186775,1.52049341,26561.0,26560.0,78.51075187]
[1693500186986,1.52049341,26561.0,26560.0,71.14652264]
[1693500186987,2.16595102,26561.0,26560.0,71.14652264]
[1693500187199,2.16595102,26561.0,26560.0,71.04646675]
[1693500187200,10.46557788,26561.0,26560.0,71.04646675]
[1693500187416,14.77571483,26561.0,26560.0,68.81298183]
[1693500187661,14.36893498,26561.0,26560.0,68.77154003]
[1693500187884,14.32129498,26561.0,26560.0,60.72769203]
[1693500188115,14.36143378,26561.0,26560.0,48.52794503]
[1693500188329,14.11889978,26561.0,26560.0,48.52794503]
[1693500188548,14.30049661,26561.0,26560.0,48.38599701]
[1693500188752,14.34447679,26561.0,26560.0,48.38599701]
[1693500188986,14.37903679,26561.0,26560.0,38.19417001]
[1693500189197,12.88568979,26561.0,26560.0,36.55179001]
[1693500189408,14.03473279,26561.0,26560.0,36.55179001]
[1693500189623,15.08538397,26561.0,26560.0,36.54449578]
[1693500189839,15.58072397,26561.0,26560.0,30.92393278]
[1693500190057,15.57892397,26561.0,26560.0,22.65945778]
[1693500190283,15.57892397,26561.0,26560.0,22.01757262]
[1693500190284,15.34428696,26561.0,26560.0,22.01757262]
[1693500190495,15.34428696,26561.0,26560.0,21.83367536]
[1693500190496,15.60551382,26561.0,26560.0,21.83367536]
[1693500190709,15.30993696,26561.0,26560.0,20.73530013]
[1693500190944,15.45975696,26561.0,26560.0,11.31847926]
[1693500191159,15.38109696,26561.0,26560.0,6.38091913]
[1693500191380,15.33345696,26561.0,26560.0,6.37676061]
[1693500191595,15.5423458,26561.0,26560.0,6.32432097]
[1693500191834,15.35633696,26561.0,26560.0,6.32432097]
[1693500192044,15.40110488,26561.0,26560.0,2.28758797]
[1693500192267,1.52049341,26545.0,26544.0,0.0952971]
[1693500192483,1.52049341,26545.0,26538.0,0.01950659]
[1693500192484,1.4,26539.0,26538.0,0.01950659]
[1693500192702,1.4,26539.0,26537.0,0.04000959]
[1693500192703,1.91475319,26539.0,26537.0,0.04000959]
[1693500192947,0.81475319,26538.0,26537.0,0.04000959]
[1693500193169,0.50271306,26538.0,26537.0,0.04000959]
[1693500193381,0.3,26538.0,26537.0,0.04000959]
[1693500193800,0.94049341,26543.0,26537.0,0.03500959]
[1693500194013,0.9,26540.0,26537.0,0.03500959]
[1693500194288,0.9,26540.0,26537.0,0.015503]
[1693500194289,0.5,26538.0,26537.0,0.015503]
[1693500194500,0.536,26538.0,26537.0,0.015503]
[1693500194707,0.5,26538.0,26537.0,0.015503]
[1693500194918,0.52,26538.0,26537.0,0.015503]
[1693500195337,0.52,26538.0,26530.0,0.004002]
[1693500195338,0.9,26532.0,26530.0,0.02350859]
[1693500195551,0.9,26532.0,26531.0,0.2507]
[1693500195782,0.9,26532.0,26529.0,0.01950659]
[1693500195993,0.9,26532.0,26526.0,0.2507]
[1693500195994,0.91315422,26532.0,26526.0,0.2507]
[1693500196622,0.91315422,26532.0,26529.0,0.03850859]
[1693500196623,0.16022656,26532.0,26529.0,0.03850859]
[1693500196840,0.01315422,26532.0,26529.0,0.03350859]
[1693500197266,0.9,26529.0,26526.0,0.2507]
[1693500197482,1.04707234,26529.0,26526.0,0.2507]
[1693500197904,0.04649141,26530.0,26523.0,0.00545455]
[1693500197905,0.9,26525.0,26523.0,0.00545455]
[1693500198138,0.14707234,26524.0,26523.0,0.00545455]
[1693500198361,0.96707234,26524.0,26523.0,0.00545455]
[1693500198573,0.82,26524.0,26523.0,0.00545455]
[1693500199010,0.5,26527.0,26523.0,0.03896314]
[1693500199224,0.0308976,26531.0,26530.0,0.06850859]
[1693500199498,0.9,26533.0,26530.0,0.12]
[1693500199740,0.9,26533.0,26521.0,0.3208]
[1693500199741,0.9,26527.0,26521.0,0.3208]
[1693500199948,0.9,26527.0,26523.0,0.07396314]
[1693500199949,1.04707234,26527.0,26523.0,0.07396314]
[1693500200173,0.5,26530.0,26524.0,0.06850859]
[1693500200387,0.5,26530.0,26526.0,0.06850859]
[1693500200598,0.5,26530.0,26526.0,0.18850859]
[1693500200814,0.5,26530.0,26527.0,0.06366]
[1693500201020,0.86768085,26530.0,26527.0,0.08496]
[1693500201227,0.86768085,26530.0,26524.0,0.06850859]
[1693500201461,0.036,26527.0,26525.0,0.07428]
[1693500201694,0.9,26529.0,26523.0,0.07396314]
[1693500201911,0.9,26524.0,26523.0,0.00545455]
[1693500202339,1.26,26524.0,26523.0,5.5e-07]
[1693500202552,1.38106,26524.0,26523.0,5.5e-07]
[1693500202767,1.40106,26524.0,26523.0,5.5e-07]
[1693500203389,1.265287,26524.0,26523.0,5.5e-07]
[1693500203632,0.045287,26524.0,26523.0,5.5e-07]
[1693500203826,0.02960922,26531.0,26525.0,0.06850859]
[1693500203827,0.5,26529.0,26525.0,0.06850859]
[1693500204041,0.9,26527.0,26526.0,0.12]
[1693500204247,0.019,26524.0,26523.0,5.5e-07]
[1693500204942,0.06,26532.0,26524.0,0.06850859]
[1693500204943,0.5,26529.0,26524.0,0.06850859]
[1693500205162,0.51149141,26532.0,26526.0,0.06850859]
[1693500205426,0.5,26536.0,26531.0,0.04850859]
[1693500205708,0.5,26536.0,26533.0,0.06850859]
[1693500205967,0.5,26536.0,26534.0,0.12]
[1693500206237,0.5,26536.0,26534.0,0.08064283]
[1693500206489,0.5,26536.0,26533.0,0.06850859]
[1693500206757,0.01149141,26538.0,26533.0,0.06850859]
[1693500207343,0.68595283,26539.0,26535.0,0.06850859]
[1693500207347,0.53120465,26546.0,26541.0,0.04]
[1693500207812,0.51149141,26546.0,26542.0,0.08064283]
[1693500208954,1.02926553,26547.0,26545.0,0.06850859]
[1693500208955,0.12926553,26547.0,26545.0,0.06850859]
[1693500208956,0.12926553,26547.0,26546.0,0.06850859]
[1693500208959,0.12926553,26547.0,26543.0,0.36768085]
[1693500208960,0.12926553,26547.0,26543.0,0.04]
[1693500208961,0.037,26546.0,26544.0,0.06850859]
[1693500209368,1.4,26545.0,26538.0,0.06850859]
[1693500209372,0.01149141,26544.0,26538.0,0.06850859]
[1693500209597,0.15818675,26544.0,26542.0,0.004]
[1693500209832,0.01111441,26544.0,26542.0,0.004]
[1693500210100,1.26768085,26543.0,26542.0,0.004]
[1693500210366,0.01111441,26544.0,26542.0,0.004]
[1693500210615,0.5,26545.0,26542.0,0.08464283]
[1693500210867,0.5,26545.0,26542.0,0.08064283]
[1693500211132,1.04037994,26547.0,26543.0,0.36768085]
[1693500211133,0.036,26544.0,26543.0,0.36768085]
[1693500211373,0.91111441,26545.0,26540.0,0.04888559]
[1693500211605,0.036,26544.0,26540.0,0.04]
[1693500211815,0.036,26544.0,26542.0,0.003]
[1693500212021,0.69518675,26545.0,26542.0,0.003]
[1693500212022,0.54811441,26545.0,26542.0,0.003]
[1693500212243,0.537,26545.0,26543.0,0.36768085]
[1693500212453,0.036,26544.0,26543.0,0.36768085]
[1693500212899,0.036,26544.0,26543.0,0.40768085]
[1693500213112,0.036,26544.0,26543.0,0.47200085]
[1693500213320,0.036,26544.0,26543.0,0.47770085]
[1693500213539,0.036,26544.0,26543.0,0.49238085]
[1693500213751,0.036,26545.0,26544.0,0.14888559]
[1693500213968,0.036,26545.0,26544.0,0.51656644]
[1693500214188,0.12926553,26547.0,26544.0,0.77204644]
[1693500214393,0.12926553,26547.0,26545.0,0.59548085]
[1693500214606,0.12926553,26547.0,26546.0,0.14888559]
[1693500214835,0.12927056,26549.0,26546.0,0.14888559]
[1693500214836,0.12927056,26549.0,26547.0,0.1]
[1693500215056,0.12927056,26549.0,26548.0,0.74436644]
[1693500215324,0.12927056,26549.0,26548.0,1.00716644]
[1693500215558,0.12927056,26549.0,26548.0,0.97384068]
[1693500215781,0.12927056,26549.0,26547.0,0.149271]
[1693500215782,0.12927056,26549.0,26546.0,0.08]
[1693500216000,0.15238497,26549.0,26547.0,0.001]
[1693500216211,0.15238497,26549.0,26547.0,0.44044085]
[1693500216420,0.15238497,26549.0,26547.0,0.44482085]
[1693500216667,0.01111441,26548.0,26547.0,0.001]
[1693500217592,1.96304051,26548.0,26547.0,0.001]
[1693500217876,0.01111441,26542.0,26541.0,0.1975]
[1693500218100,0.01111441,26542.0,26535.0,0.33606]
[1693500218101,0.01111441,26541.0,26538.0,0.1975]
[1693500218322,0.01111441,26541.0,26535.0,0.07848]
[1693500218323,0.01111441,26538.0,26535.0,0.1961]
[1693500218540,0.01111441,26538.0,26533.0,0.06]
[1693500218541,0.14707234,26537.0,26533.0,0.13434]
[1693500218752,0.14707234,26537.0,26530.0,0.1961]
[1693500218753,0.01111441,26535.0,26530.0,0.1961]
[1693500218967,0.14707234,26534.0,26530.0,0.1961]
[1693500219179,0.14707234,26534.0,26531.0,0.36768085]
[1693500219418,0.01111441,26535.0,26531.0,0.67546085]
[1693500219602,0.15818675,26535.0,26531.0,0.36768085]
[1693500219816,0.15818675,26535.0,26533.0,0.002]
[1693500219817,0.01111441,26534.0,26533.0,0.002]
[1693500221073,0.01111441,26535.0,26533.0,0.36768085]
[1693500221351,0.01111441,26535.0,26534.0,0.36768085]
[1693500221602,0.01111441,26541.0,26536.0,0.08]
[1693500221882,0.01111441,26542.0,26537.0,0.75612368]
[1693500222089,0.01111441,26542.0,26537.0,1.05108368]
[1693500222342,0.01111441,26544.0,26538.0,0.26172]
[1693500222592,0.5,26547.0,26541.0,0.2478]
[1693500222593,0.01111441,26547.0,26541.0,0.2478]
[1693500222835,0.01111441,26545.0,26542.0,0.44832368]
[1693500223079,0.5,26550.0,26542.0,0.54594368]
[1693500223080,0.01111441,26546.0,26542.0,0.54594368]
[1693500223322,0.5,26550.0,26543.0,0.12224]
[1693500223323,0.01111441,26547.0,26543.0,0.12224]
[1693500223566,0.01111441,26547.0,26544.0,0.67612368]
[1693500223793,0.01111441,26547.0,26544.0,0.36768085]
[1693500224611,0.04711441,26547.0,26545.0,0.0696]
[1693500224864,0.01111441,26552.0,26546.0,0.38768085]
[1693500225119,0.01111441,26550.0,26549.0,0.2278]
[1693500225376,0.01111441,26550.0,26546.0,0.49796085]
[1693500225377,0.036,26547.0,26546.0,0.36768085]
[1693500225646,0.036,26547.0,26544.0,0.51476]
[1693500225647,0.04711441,26547.0,26544.0,0.003]
[1693500225866,0.19418675,26547.0,26544.0,0.36768085]
[1693500226114,0.04711441,26547.0,26544.0,0.36768085]
[1693500226355,0.04711441,26547.0,26546.0,0.003]
[1693500227337,0.01111441,26547.0,26546.0,0.003]
[1693500227581,0.01111441,26547.0,26543.0,0.0863]
[1693500227582,0.01111441,26547.0,26543.0,0.08564]
[1693500227832,0.15818675,26547.0,26543.0,0.38768085]
[1693500228072,0.01111441,26547.0,26543.0,0.45674085]
[1693500228318,0.04711441,26547.0,26544.0,0.44760085]
[1693500228536,0.04711441,26547.0,26544.0,0.44892085]
[1693500228686,0.04711441,26547.0,26544.0,0.44634085]
[1693500228899,0.04711441,26547.0,26542.0,0.0702]
[1693500228900,0.01111441,26546.0,26542.0,0.0702]
[1693500229098,0.01111441,26546.0,26543.0,0.004]
[1693500229099,0.01111441,26545.0,26543.0,0.004]
[1693500229300,0.01111441,26545.0,26543.0,0.37168085]
[1693500229528,1.4,26549.0,26543.0,0.36768085]
[1693500229529,0.01111441,26544.0,26543.0,0.36768085]
[1693500229826,0.53717291,26549.0,26543.0,0.36768085]
[1693500230027,0.53717291,26549.0,26544.0,0.08064283]
[1693500230235,0.53717291,26549.0,26545.0,0.36768085]
[1693500230570,0.036,26547.0,26546.0,0.30844283]
[1693500230839,0.6895,26552.0,26545.0,0.36768085]
[1693500231060,0.6895,26552.0,26546.0,0.08064283]
[1693500231061,0.92352934,26552.0,26546.0,0.08064283]
[1693500231272,0.036,26547.0,26546.0,0.08064283]
[1693500231483,0.036,26547.0,26544.0,0.004]
[1693500231698,0.1895,26550.0,26543.0,0.2808]
[1693500231938,0.072,26547.0,26546.0,0.004]
[1693500232376,0.10917291,26547.0,26546.0,0.004]
[1693500232501,0.16012991,26547.0,26540.0,0.02]
[1693500232723,0.14707234,26546.0,26544.0,0.004]
[1693500232939,0.072,26547.0,26544.0,0.004]
[1693500233142,0.072,26547.0,26545.0,0.36768085]
[1693500233554,0.036,26547.0,26546.0,0.06432]
[1693500233927,0.036,26547.0,26546.0,0.70168085]
[1693500234148,0.036,26547.0,26546.0,0.85744085]
[1693500234375,0.036,26547.0,26546.0,0.91440085]
[1693500234581,0.21739251,26553.0,26546.0,0.89484085]
[1693500234832,0.036,26547.0,26546.0,0.45176]
[1693500235049,0.26087102,26558.0,26555.0,0.02]
[1693500235050,0.086957,26557.0,26555.0,0.02]
[1693500235275,0.21739251,26558.0,26557.0,0.2278]
[1693500235496,0.086957,26562.0,26560.0,0.04]
[1693500235755,0.086957,26562.0,26561.0,0.2478]
[1693500235974,0.21757823,26562.0,26561.0,0.02]
[1693500236178,0.13043551,26562.0,26561.0,0.02]
[1693500236390,0.13043551,26562.0,26561.0,0.08714]
[1693500236617,0.13043551,26562.0,26559.0,0.455417]
[1693500236618,0.08709,26562.0,26559.0,0.455417]
[1693500236851,0.21770985,26561.0,26557.0,0.009]
[1693500237129,0.21770985,26561.0,26557.0,0.08634]
[1693500237344,0.21770985,26562.0,26558.0,0.36408]
[1693500237558,0.21770985,26561.0,26558.0,0.348]
[1693500237778,0.21770985,26561.0,26559.0,0.07152]
[1693500237998,0.08708394,26560.0,26556.0,0.02]
[1693500238217,0.08708394,26560.0,26558.0,0.02]
[1693500238430,0.13062591,26561.0,26557.0,0.09342]
[1693500238431,0.12308394,26561.0,26557.0,0.09342]
[1693500238647,0.12308394,26561.0,26556.0,0.02]
[1693500238648,0.08708394,26561.0,26556.0,0.02]
[1693500238873,0.21770985,26561.0,26556.0,0.02]
[1693500239092,0.12308394,26561.0,26559.0,0.004]
[1693500239304,0.016,26560.0,26559.0,0.004]
[1693500239735,0.036,26561.0,26559.0,0.004]
[1693500240164,0.065,26561.0,26559.0,0.004]
[1693500240375,0.065,26561.0,26557.0,0.29704]
[1693500240376,0.029,26561.0,26557.0,0.29704]
[1693500240596,0.029,26561.0,26558.0,0.09]
[1693500240812,0.065,26561.0,26558.0,0.11418]
[1693500241036,0.029,26561.0,26559.0,0.10236]
[1693500241244,0.029,26561.0,26560.0,0.2278]
[1693500241448,0.21770985,26564.0,26560.0,0.2278]
[1693500241659,0.08708394,26564.0,26560.0,0.33178]
[1693500241861,0.065,26561.0,26560.0,0.2278]
[1693500242074,0.029,26561.0,26560.0,0.2278]
[1693500242322,0.21770985,26564.0,26558.0,0.150823]
[1693500242515,0.10217291,26561.0,26560.0,0.006]
[1693500243441,0.07317291,26561.0,26560.0,0.004]
[1693500243662,0.07317291,26561.0,26554.0,0.32274]
[1693500243663,0.03717291,26561.0,26555.0,0.07194]
[1693500243872,0.1825,26562.0,26556.0,0.02]
[1693500244086,0.1825,26562.0,26558.0,0.003]
[1693500244296,0.1825,26562.0,26554.0,0.3114]
[1693500244512,0.03717291,26561.0,26554.0,0.31344]
[1693500244755,0.07317291,26561.0,26560.0,0.003]
[1693500244967,0.03717291,26561.0,26558.0,0.003]
[1693500245194,0.03717291,26561.0,26555.0,0.0906]
[1693500245195,0.08708394,26562.0,26557.0,0.2278]
[1693500245413,0.036,26562.0,26560.0,0.2278]
[1693500245909,0.036,26562.0,26561.0,0.09864]
[1693500246169,0.13062591,26566.0,26561.0,0.13598]
[1693500246170,0.08708394,26566.0,26561.0,0.13598]
[1693500246424,0.08708394,26565.0,26561.0,0.10104]
[1693500246683,0.21770985,26565.0,26560.0,0.02]
[1693500246927,0.08708394,26565.0,26562.0,0.36768085]
[1693500247164,0.08708394,26565.0,26558.0,0.222104]
[1693500247165,0.03717291,26564.0,26558.0,0.222104]
[1693500247374,0.036,26561.0,26560.0,0.004]
[1693500247793,0.23415628,26564.0,26559.0,0.36768085]
[1693500248006,0.12425685,26564.0,26560.0,0.003]
[1693500248425,0.12425685,26564.0,26559.0,0.36768085]
[1693500248641,0.036,26561.0,26560.0,0.004]
[1693500249061,0.12308394,26562.0,26555.0,0.02]
[1693500249276,0.14707234,26561.0,26556.0,0.36768085]
[1693500249485,0.14707234,26561.0,26559.0,0.003]
[1693500249690,0.08708394,26561.0,26559.0,0.003]
[1693500250310,0.08708394,26561.0,26560.0,0.003]
[1693500250523,0.17391401,26561.0,26560.0,0.003]
[1693500250736,0.17391401,26561.0,26559.0,0.003]
[1693500250737,0.19391401,26561.0,26559.0,0.003]
[1693500250956,0.33717291,26560.0,26559.0,0.004]
[1693500251168,1.74485376,26560.0,26559.0,0.004]
[1693500251379,1.74485376,26560.0,26549.0,0.02]
[1693500251380,0.5,26558.0,26555.0,0.001]
[1693500251600,0.2176916,26557.0,26555.0,0.001]
[1693500251806,0.2176916,26557.0,26550.0,0.06456]
[1693500252024,0.23414898,26556.0,26550.0,0.36768085]
[1693500252262,0.27132189,26556.0,26550.0,0.36768085]
[1693500252446,0.27132189,26556.0,26545.0,0.06]
[1693500252447,0.5,26551.0,26544.0,0.07908]
[1693500252662,0.22707234,26550.0,26540.0,0.2721]
[1693500252877,0.22707234,26550.0,26546.0,0.02]
[1693500252878,0.14707234,26550.0,26546.0,0.02]
[1693500253094,0.3918449,26554.0,26546.0,0.02]
[1693500253095,0.08707664,26554.0,26549.0,0.2478]
[1693500253299,0.13061496,26555.0,26550.0,0.44832368]
[1693500253300,0.08707664,26555.0,26550.0,0.44832368]
[1693500253508,0.08707664,26555.0,26550.0,0.55260368]
[1693500253734,0.08707664,26555.0,26551.0,0.08682]
[1693500253926,0.3737916,26556.0,26552.0,0.36768085]
[1693500254132,0.3737916,26556.0,26552.0,0.44832368]
[1693500254349,0.24317664,26556.0,26552.0,0.51858368]
[1693500254557,0.035,26555.0,26552.0,0.36768085]
[1693500254784,0.24317664,26556.0,26552.0,0.36768085]
[1693500255307,0.072,26556.0,26553.0,0.07788]
[1693500255563,0.036,26556.0,26554.0,0.59548085]
[1693500255811,0.036,26556.0,26554.0,0.71254085]
[1693500256121,0.036,26556.0,26555.0,0.0825]
[1693500256333,0.036,26556.0,26555.0,0.43824085]
[1693500256565,0.036,26556.0,26555.0,0.43446085]
[1693500256808,0.036,26556.0,26555.0,0.44676085]
[1693500257058,0.036,26556.0,26555.0,0.44214085]
[1693500257273,0.036,26556.0,26555.0,0.44796085]
[1693500257482,0.01,26556.0,26555.0,0.65408085]
[1693500257699,0.21769161,26562.0,26560.0,0.02]
[1693500257700,0.08707664,26562.0,26560.0,0.02]
[1693500257906,0.08707664,26563.0,26561.0,0.44832368]
[1693500258127,0.08707664,26565.0,26562.0,0.36768085]
[1693500258335,0.08707664,26565.0,26563.0,0.30844283]
[1693500258546,0.08707664,26565.0,26564.0,0.38768085]
[1693500258764,0.08707664,26565.0,26564.0,0.51224085]
[1693500258975,0.08707664,26565.0,26564.0,0.49664085]
[1693500259184,0.08707664,26565.0,26564.0,0.48932085]
[1693500259393,0.08707664,26565.0,26564.0,0.48632085]
[1693500259597,0.08707664,26566.0,26564.0,0.48524085]
[1693500259805,0.08707664,26566.0,26565.0,0.02]
[1693500260022,0.08707664,26566.0,26565.0,0.49364085]
[1693500260229,0.08707664,26566.0,26565.0,0.49460085]
[1693500260441,0.08707664,26567.0,26566.0,0.02]
[1693500260649,0.11772587,26568.0,26566.0,0.38768085]
[1693500260862,0.11772587,26568.0,26567.0,0.59548085]
[1693500261096,0.11772587,26568.0,26567.0,0.44646085]
[1693500261355,0.20480252,26568.0,26565.0,0.09397911]
[1693500261533,0.16659381,26566.0,26562.0,0.08034]
[1693500261754,0.16659381,26566.0,26560.0,0.170788]
[1693500261755,0.21762838,26564.0,26563.0,0.36768085]
[1693500261976,0.08705135,26564.0,26563.0,0.36768085]
[1693500262442,0.21762838,26564.0,26563.0,0.36768085]
[1693500262654,0.08705135,26564.0,26563.0,0.36768085]
[1693500263078,0.12305135,26564.0,26563.0,0.36768085]
[1693500263934,0.21015329,26564.0,26559.0,0.0762]
[1693500264161,0.3646741,26563.0,26560.0,0.36768085]
[1693500264365,0.0870407,26563.0,26560.0,0.36768085]
[1693500264580,0.0870407,26562.0,26560.0,0.36768085]
[1693500265866,0.0870407,26561.0,26558.0,0.02]
[1693500266076,0.0870407,26561.0,26560.0,0.001]
[1693500266566,0.30471435,26561.0,26560.0,0.001]
[1693500266786,0.30471435,26561.0,26558.0,0.38768085]
[1693500266999,0.08717957,26560.0,26558.0,0.38768085]
[1693500267427,0.10817957,26561.0,26559.0,0.43338085]
[1693500267668,0.08717957,26561.0,26559.0,0.36768085]
[1693500267883,0.08717957,26561.0,26556.0,0.10062]
[1693500267884,0.23425191,26561.0,26556.0,0.10062]
[1693500268095,0.23425191,26561.0,26550.0,0.2187]
[1693500268096,0.08717608,26558.0,26552.0,0.08694]